bitfinex/quotes_ETHUSD_20251028
["timestamp","ask_amount","ask_price","bid_price","bid_amount"]
[1761681678148,0.1232,4036.6,4036.5,2.47739378]
[1761681678344,2.495,4036.9,4036.6,2.47732956]
[1761681678603,2.6182,4036.9,4036.7,0.4721]
[1761681678762,0.3332,4036.9,4036.7,0.4721]
[1761681679504,0.3332,4036.9,4036.0,0.2313]
[1761681679713,0.1232,4036.4,4036.0,0.2313]
[1761681679852,2.285,4036.3,4036.0,0.2313]
[1761681680057,2.79691479,4036.3,4036.0,0.2313]
[1761681680580,2.47757791,4036.2,4035.7,0.2313]
[1761681680881,0.51191479,4036.2,4035.7,0.2313]
[1761681681084,0.1409,4036.8,4036.0,2.47765361]
[1761681681085,2.19426809,4036.8,4036.0,2.47765361]
[1761681681283,2.285,4036.7,4036.5,2.47733848]
[1761681681469,2.285,4036.7,4036.4,2.47744384]
[1761681681672,0.21,4036.9,4036.5,0.4721]
[1761681681992,2.285,4036.8,4036.5,0.4721]
[1761681682410,0.21,4036.9,4036.5,0.4721]
[1761681682411,0.72306523,4036.9,4036.5,2.94947215]
[1761681682576,0.21,4036.9,4036.7,2.47721752]
[1761681682780,0.21,4036.9,4036.3,0.4721]
[1761681683080,1.15213332,4036.8,4036.3,0.4721]
[1761681683288,2.79806523,4036.7,4036.3,0.4721]
[1761681683495,0.51306523,4036.6,4036.0,2.4776921]
[1761681683700,0.51306523,4036.5,4036.3,0.4721]
[1761681683903,0.51306523,4036.6,4036.4,2.47739728]
[1761681684064,2.79806523,4036.7,4036.5,0.4721]
[1761681684266,0.51306523,4036.6,4036.5,2.94949378]
[1761681684570,0.21,4036.9,4036.5,2.94949378]
[1761681684571,0.51306523,4036.8,4036.7,2.47727103]
[1761681685099,0.51306523,4036.8,4036.7,0.4721]
[1761681686167,0.51306523,4036.8,4036.7,2.94937103]
[1761681686399,0.51306523,4036.8,4036.7,0.4721]
[1761681686885,0.51306523,4036.8,4036.7,2.94937103]
[1761681687075,0.51306523,4036.8,4036.7,0.4721]
[1761681687474,0.51306523,4036.8,4036.7,3.26626389]
[1761681687690,0.21,4036.9,4036.4,0.2195]
[1761681687691,2.495,4036.9,4036.4,0.2195]
[1761681687895,2.495,4036.9,4035.4,0.4721]
[1761681687896,2.85133332,4036.8,4035.4,0.4721]
[1761681688209,0.64424377,4036.0,4035.4,0.2313]
[1761681688377,0.85206002,4036.2,4035.4,0.2313]
[1761681688378,2.47782347,4035.8,4035.4,0.2313]
[1761681688574,3.442309,4035.9,4034.9,0.002]
[1761681688575,4.7807501,4035.7,4034.9,0.002]
[1761681688886,0.74766523,4035.7,4034.9,0.002]
[1761681689073,3.12251572,4035.0,4034.9,0.002]
[1761681689261,3.63558095,4035.0,4034.9,0.002]
[1761681689500,5.92058095,4035.0,4034.9,0.002]
[1761681689702,1.15726621,4035.0,4034.9,0.002]
[1761681689931,0.1232,4035.0,4034.9,0.72214966]
[1761681690138,0.1232,4035.0,4034.9,0.4741]
[1761681690433,6.95477997,4035.0,4034.9,0.002]
[1761681690634,7.81371461,4035.0,4034.9,0.002]
[1761681691139,7.28417997,4035.0,4034.9,0.002]
[1761681691730,8.14158184,4035.0,4034.9,0.002]
[1761681692306,8.14143706,4035.0,4034.9,0.002]
[1761681693153,0.63626523,4035.0,4034.9,0.002]
[1761681693300,2.79806523,4035.0,4034.9,0.002]
[1761681693500,7.16097997,4035.0,4034.9,0.002]
[1761681694945,8.11841246,4035.0,4034.9,0.002]
[1761681695237,3.65778563,4035.0,4034.9,0.002]
[1761681695538,3.44350603,4035.0,4034.9,0.002]
[1761681695756,0.51479461,4035.0,4034.9,0.7054]
[1761681695916,0.51479461,4035.2,4034.9,0.7054]
[1761681696111,0.51479461,4035.5,4035.2,2.47816671]
[1761681696307,0.51479461,4035.7,4035.2,0.56618809]
[1761681696507,0.51479461,4036.0,4035.3,0.4721]
[1761681696835,0.51479461,4036.3,4035.7,2.47787518]
[1761681697049,5.40617752,4036.4,4035.4,2.47806908]
[1761681697050,0.51479461,4036.2,4035.4,2.47806908]
[1761681697367,0.51479461,4036.3,4035.8,2.47776572]
[1761681697550,2.79979461,4036.4,4035.7,2.47786757]
[1761681697862,2.79979461,4036.4,4034.9,0.2333]
[1761681697863,2.47751653,4036.3,4035.8,0.54279603]
[1761681698035,2.99231114,4036.3,4035.6,0.6925]
[1761681698658,3.8402,4036.2,4035.6,0.6925]
[1761681698971,0.51479461,4036.1,4035.6,0.6925]
[1761681699469,0.51479461,4036.1,4035.7,0.4721]
[1761681699669,2.285,4036.2,4035.8,2.47781553]
[1761681699970,2.285,4036.2,4035.8,2.79484708]
[1761681700132,2.285,4036.2,4035.8,0.74733155]
[1761681700338,2.285,4036.2,4035.8,0.4303]
[1761681700531,2.80015968,4036.2,4035.8,0.4303]
[1761681700731,1.5552,4036.4,4035.8,0.4303]
[1761681700958,2.285,4036.3,4035.8,0.4303]
[1761681701163,2.80014632,4036.3,4035.8,0.4303]
[1761681701673,2.80014632,4036.3,4035.4,0.002]
[1761681701674,4.03290493,4036.0,4035.4,0.002]
[1761681701858,1.5552,4035.8,4035.4,0.4323]
[1761681702063,2.285,4035.9,4035.5,2.47800768]
[1761681702261,0.51534892,4036.0,4035.4,0.4323]
[1761681702463,2.285,4036.0,4035.8,2.47777948]
[1761681702766,1.5552,4036.3,4035.7,2.47785863]
[1761681702968,2.285,4036.2,4035.7,2.47785863]
[1761681703278,2.80068649,4036.2,4035.8,0.4303]
[1761681703468,0.1232,4036.0,4035.8,2.90811801]
[1761681703635,0.1232,4036.0,4035.9,2.47776208]
[1761681703837,0.1232,4036.0,4035.9,0.4303]
[1761681704174,4.54829429,4036.5,4036.0,2.47770069]
[1761681704175,0.51568649,4036.4,4036.0,2.47770069]
[1761681704472,2.285,4036.5,4036.0,2.47770069]
[1761681704473,0.1232,4036.3,4036.0,2.47770069]
[1761681704691,0.1232,4036.3,4036.1,0.6498]
[1761681705191,0.1232,4036.3,4036.1,3.12743477]
[1761681705557,0.1232,4036.3,4036.2,2.90787791]
[1761681705756,0.51668649,4036.8,4036.2,0.99081137]
[1761681705958,0.001,4036.8,4036.7,2.47727103]
[1761681706204,0.001,4036.8,4036.7,0.4303]
[1761681706568,0.001,4036.8,4036.7,2.90757103]
[1761681706776,0.001,4036.8,4036.7,3.43627503]
[1761681707099,0.211,4037.6,4037.5,2.88228418]
[1761681707280,0.001,4037.7,4037.6,2.88222284]
[1761681707494,0.001,4038.0,4037.6,2.88222284]
[1761681707495,0.001,4038.0,4037.9,2.88203883]
[1761681707805,1.71037567,4040.6,4038.5,0.405504]
[1761681707806,0.64467715,4039.8,4038.5,0.405504]
[1761681707968,1.036,4040.0,4038.6,3.0307704]
[1761681708170,0.2302,4039.9,4038.7,2.47604427]
[1761681708373,2.47546212,4039.7,4038.8,2.47598296]
[1761681708568,0.51573116,4039.8,4038.7,0.835804]
[1761681708774,2.284,4040.3,4039.5,2.47550783]
[1761681708974,2.284,4040.3,4039.8,2.47534498]
[1761681709194,2.284,4040.3,4039.3,0.405504]
[1761681709488,4.75906943,4040.3,4039.2,2.284]
[1761681709792,2.47512522,4040.2,4039.3,2.47567647]
[1761681710006,2.284,4040.3,4039.3,2.90597647]
[1761681710206,2.284,4040.3,4039.4,2.47561218]
[1761681710386,0.001,4040.6,4039.5,0.51899122]
[1761681710701,0.001,4040.6,4039.7,2.47543134]
[1761681710903,0.001,4040.6,4040.2,2.47511615]
[1761681711203,0.001,4040.6,4040.5,2.69444122]
[1761681711561,0.001,4040.6,4040.5,0.6498]
[1761681711758,0.001,4040.6,4040.5,0.2195]
[1761681712222,0.001,4040.6,4040.5,5.08544522]
[1761681712386,0.001,4040.6,4040.5,5.84149522]
[1761681712895,0.001,4040.6,4040.5,4.095354]
[1761681713205,0.001,4040.6,4040.5,5.40874122]
[1761681713405,0.001,4040.6,4040.5,5.81424522]
[1761681713985,0.001,4040.6,4040.5,2.5025]
[1761681715082,0.001,4040.6,4040.5,2.9328]
[1761681715825,0.001,4040.6,4040.5,2.5025]
[1761681716010,0.001,4040.6,4040.2,0.2195]
[1761681716011,2.47590391,4040.6,4040.2,0.2195]
[1761681716194,2.47505006,4040.4,4039.8,2.283]
[1761681716537,0.2302,4039.6,4038.2,0.4303]
[1761681716679,2.283,4040.2,4038.7,2.7133]
[1761681716883,2.47588058,4040.6,4039.2,2.47572513]
[1761681717101,0.1232,4040.2,4039.6,0.1232]
[1761681717802,0.1232,4040.2,4039.6,2.59869129]
[1761681718116,0.1232,4040.2,4039.6,0.1232]
[1761681718421,0.1232,4040.2,4039.8,2.47536512]
[1761681718784,0.1232,4040.2,4039.7,2.90571883]
[1761681718986,0.1232,4040.2,4039.8,2.4753116]
[1761681719218,0.1232,4040.2,4039.9,2.47530656]
[1761681719628,2.47588817,4040.6,4039.5,2.283]
[1761681719824,2.47503491,4040.4,4039.6,2.47548344]
[1761681720026,0.001,4040.6,4039.6,2.47549262]
[1761681720325,2.47588391,4040.6,4039.8,2.47532521]
[1761681720625,2.4749475,4040.5,4039.8,2.47532521]
[1761681720842,0.001,4040.6,4039.9,2.47529913]
[1761681721035,0.001,4040.6,4039.5,2.7133]
[1761681721036,0.001,4040.6,4040.3,2.47500776]
[1761681721327,0.001,4040.6,4040.0,0.51982469]
[1761681721328,0.001,4040.6,4040.4,2.90524651]
[1761681721528,0.001,4040.6,4040.0,2.77707222]
[1761681721717,0.001,4040.6,4040.0,2.282]
[1761681721892,0.001,4040.6,4040.1,2.47518504]
[1761681722506,2.47498486,4040.5,4040.0,2.282]
[1761681722825,2.47500735,4040.4,4039.6,2.47543898]
[1761681722994,2.9301441,4040.5,4039.7,2.47537051]
[1761681723195,2.47503001,4040.4,4039.7,2.47537051]
[1761681723411,2.47503001,4040.4,4039.7,2.47541476]
[1761681723633,2.47503001,4040.4,4037.7,0.74293929]
[1761681723634,2.47494122,4040.5,4038.4,0.4303]
[1761681723952,0.001,4040.6,4039.0,0.405504]
[1761681724100,3.8372,4040.4,4039.1,0.616]
[1761681724302,2.47514583,4040.2,4039.3,2.4756345]
[1761681724607,2.47519163,4040.1,4039.4,2.47561128]
[1761681724807,2.47524865,4040.0,4039.3,2.47565688]
[1761681725211,2.47508934,4040.3,4039.3,2.4756194]
[1761681725412,2.47520501,4040.1,4039.4,2.47559561]
[1761681725613,2.47523751,4040.1,4039.3,2.47564799]
[1761681725813,2.47512618,4040.2,4039.2,0.2196]
[1761681726016,2.47519737,4040.1,4039.3,2.47562615]
[1761681726218,2.47519737,4040.1,4039.4,2.47559942]
[1761681726636,1.5562,4040.6,4039.9,2.47525393]
[1761681726895,0.001,4040.6,4039.5,0.4303]
[1761681727354,0.001,4040.6,4039.9,2.47526194]
[1761681727542,1.5562,4040.6,4040.0,2.47522421]
[1761681727740,0.001,4040.6,4040.0,2.47522421]
[1761681727964,0.001,4040.6,4039.6,2.282]
[1761681728184,0.001,4040.6,4039.8,2.47537006]
[1761681728399,2.47532611,4039.9,4038.7,2.8815079]
[1761681728554,2.47569167,4039.3,4038.6,0.1194]
[1761681728864,0.51332339,4040.3,4038.6,0.1194]
[1761681728865,1.5552,4039.4,4038.6,0.1194]
[1761681729251,2.282,4039.4,4038.6,0.81216867]
[1761681729652,0.64466395,4040.2,4038.6,0.81216867]
[1761681729653,0.1232,4039.3,4038.6,0.94486867]
[1761681730391,0.1232,4039.3,4038.6,0.2426]
[1761681730392,2.47574223,4039.2,4038.6,0.2426]
[1761681730562,0.1232,4039.3,4038.6,0.2426]
[1761681730763,0.1232,4039.3,4038.7,0.405504]
[1761681730966,0.1232,4039.6,4039.2,2.69533326]
[1761681731166,1.15999608,4040.6,4039.3,0.405504]
[1761681731371,2.282,4040.5,4039.3,0.848204]
[1761681731681,1.5552,4040.4,4039.7,2.47539175]
[1761681731880,2.06953213,4040.4,4039.7,2.47539175]
[1761681732083,2.06953213,4040.4,4039.3,0.4427]
[1761681732286,2.47531128,4039.9,4039.2,2.69532385]
[1761681732783,2.98964341,4039.9,4039.2,2.69532385]
[1761681733094,0.51433213,4039.9,4039.3,2.47566012]
[1761681733296,0.51433213,4039.8,4039.3,2.47566012]
[1761681733494,0.51433213,4039.9,4039.3,2.47566012]
[1761681733693,0.51433213,4039.8,4039.2,2.69530356]
[1761681733878,0.51433213,4039.9,4039.2,2.69530356]
[1761681734072,0.51433213,4039.8,4039.4,2.47561101]
[1761681734274,0.51433213,4039.7,4039.3,2.47566122]
[1761681734480,0.51433213,4039.6,4039.2,0.2196]
[1761681734687,0.51433213,4039.5,4039.2,0.2196]
[1761681734995,0.51433213,4039.4,4039.2,2.69533311]
[1761681735177,0.51433213,4039.8,4039.2,2.69533311]
[1761681735496,1.15899608,4039.7,4039.2,0.2196]
[1761681735697,0.51433213,4039.6,4039.2,0.2196]
[1761681735996,0.51433213,4039.5,4039.2,2.69532489]
[1761681736193,0.51433213,4039.4,4039.2,2.69532489]
[1761681736397,1.15899608,4039.4,4039.2,2.69532489]
[1761681736564,0.51433213,4039.3,4039.2,2.69532489]
[1761681736966,0.51433213,4039.3,4039.2,3.88334338]
[1761681737601,0.51433213,4039.3,4039.2,0.96491849]
[1761681737806,0.51433213,4039.3,4039.2,0.2196]
[1761681737992,1.15899608,4039.3,4039.0,4.75781575]
[1761681738165,1.15899608,4039.2,4039.1,2.47579906]
[1761681738368,1.15899608,4039.2,4039.1,2.69539906]
[1761681738568,0.51433213,4039.2,4039.1,2.69539906]
[1761681738799,0.51433213,4039.2,4039.1,3.74005111]
[1761681739008,0.51433213,4039.2,4039.1,2.47579906]
[1761681739804,0.51433213,4039.2,4038.8,0.405504]
[1761681739976,0.64466395,4039.3,4039.1,2.47579906]
[1761681740174,0.5190781,4039.2,4038.9,2.47592157]
[1761681740374,0.5190781,4039.1,4038.9,2.47592157]
[1761681740573,0.5190781,4039.0,4038.9,2.47592157]
[1761681740905,1.16374205,4039.0,4038.6,0.1194]
[1761681741106,0.5190781,4038.9,4038.8,2.47598296]
[1761681741483,0.5190781,4038.9,4038.7,2.91871382]
[1761681741681,0.5190781,4038.8,4038.7,2.91874427]
[1761681742132,0.5190781,4038.8,4038.7,2.47604427]
[1761681743372,0.5190781,4038.8,4038.7,2.91874427]
[1761681743718,0.5190781,4038.8,4038.7,3.73470588]
[1761681743890,0.5190781,4038.8,4038.7,3.29200588]
[1761681744703,0.5190781,4038.8,4038.7,4.14020988]
[1761681744906,0.64466395,4039.4,4039.1,2.47576069]
[1761681745094,0.51946519,4039.3,4039.2,2.47573131]
[1761681745496,1.16412914,4039.3,4039.2,2.47573131]
[1761681745816,0.51946519,4039.3,4039.2,2.47573131]
[1761681746238,0.51946519,4039.3,4039.2,3.00516936]
[1761681746709,0.51946519,4039.3,4039.2,3.44786936]
[1761681747405,0.98275193,4039.7,4039.2,0.97213805]
[1761681747611,0.98275193,4039.7,4039.0,0.1232]
[1761681747612,0.85955193,4039.5,4039.0,0.1232]
[1761681747801,0.85955193,4039.1,4038.8,2.47593189]
[1761681748001,0.51984154,4039.0,4038.8,2.47593189]
[1761681748203,0.51984154,4038.9,4038.8,2.47593189]
[1761681748421,1.16960704,4038.9,4038.8,2.47593189]
[1761681748838,1.16960704,4038.9,4038.6,4.7570644]
[1761681749011,1.16960704,4038.8,4038.6,4.75708425]
[1761681749211,0.51984154,4038.7,4038.6,4.75708425]
[1761681750305,0.51984154,4038.7,4038.6,5.52096462]
[1761681750506,0.51984154,4038.7,4038.6,5.52098595]
[1761681750708,0.51984154,4038.7,4038.6,4.75710558]
[1761681751102,0.51984154,4038.7,4038.6,5.19980558]
[1761681752212,0.51984154,4038.7,4038.6,5.16260958]
[1761681752417,0.001,4038.8,4038.7,2.88154827]
[1761681752618,0.001,4038.8,4038.7,3.32424827]
[1761681752819,0.001,4038.8,4038.7,4.38000103]
[1761681753811,0.001,4038.8,4038.7,6.21830103]
[1761681754213,0.001,4038.8,4038.7,6.66100103]
[1761681755314,0.001,4038.8,4038.7,3.93730103]
[1761681755514,0.001,4038.8,4038.7,5.16254827]
[1761681755912,0.001,4038.8,4038.7,5.60524827]
[1761681757347,0.001,4038.8,4038.7,7.16044827]
[1761681757713,0.001,4038.8,4038.7,7.28364827]
[1761681760833,0.001,4038.8,4038.7,3.44744827]
[1761681761044,0.001,4038.8,4038.7,4.87924427]
[1761681761220,0.001,4038.8,4038.7,5.61477925]
[1761681761425,0.001,4038.8,4038.7,6.02028325]
[1761681762145,0.001,4038.8,4038.7,6.48808325]
[1761681763272,0.001,4038.8,4038.7,8.04328325]
[1761681763765,0.001,4038.8,4038.7,3.21157925]
[1761681763965,0.001,4038.8,4038.7,5.24860471]
[1761681764164,0.001,4038.8,4038.7,5.62934827]
[1761681767167,0.001,4038.8,4038.7,7.18454827]
[1761681771279,1e-08,4039.7,4039.6,4.65579662]
[1761681771474,1e-08,4039.7,4039.6,6.93479662]
[1761681771648,1e-08,4039.7,4039.6,9.75565457]
[1761681771853,1e-08,4039.7,4039.6,10.03391474]
[1761681772784,1e-08,4039.7,4039.6,9.75565457]
[1761681773864,1e-08,4039.7,4039.6,9.87885457]
[1761681777275,1e-08,4039.7,4039.6,6.72655057]
[1761681777463,1e-08,4039.7,4039.6,7.91815057]
[1761681777662,1e-08,4039.7,4039.6,7.52579662]
[1761681777871,1e-08,4039.7,4039.6,5.97059662]
[1761681778263,1e-08,4039.7,4039.6,7.52579662]
[1761681779591,1e-08,4039.7,4039.6,5.15899662]
[1761681779908,1e-08,4039.7,4039.6,7.18199662]
[1761681780052,1e-08,4039.7,4039.6,8.16971351]
[1761681780500,1e-08,4039.7,4039.6,2.47549262]
[1761681780791,0.46100001,4039.7,4039.6,4.75349262]
[1761681781170,1e-08,4039.7,4039.6,4.75349262]
[1761681781683,1e-08,4039.7,4039.6,5.15899662]
[1761681782052,1e-08,4039.7,4039.6,2.47549262]
[1761681782252,1e-08,4039.7,4039.6,4.75349262]
[1761681782253,0.46100001,4039.7,4039.6,4.75349262]
[1761681782458,0.46100001,4039.7,4039.6,5.15899662]
[1761681783090,1e-08,4039.7,4039.6,5.15899662]
[1761681783881,0.46100001,4039.7,4039.6,5.15899662]
[1761681784113,0.46100001,4039.7,4039.1,2.69536016]
[1761681784114,0.46100001,4039.7,4038.0,0.002]
[1761681784313,0.2302,4039.6,4038.1,2.278]
[1761681784494,0.461,4039.5,4039.1,2.47574727]
[1761681784684,0.461,4039.5,4039.1,2.278]
[1761681785187,0.461,4039.5,4039.2,2.47568752]
[1761681786216,0.461,4039.5,4039.4,2.47561519]
[1761681786389,0.461,4039.5,4039.1,4.75579892]
[1761681786590,0.461,4039.5,4039.3,2.47564737]
[1761681787314,0.461,4039.5,4039.4,2.47561519]
[1761681787616,0.461,4039.5,4039.1,2.28]
[1761681787817,0.461,4039.5,4039.1,0.002]
[1761681787818,2.47570705,4039.3,4039.1,0.002]
[1761681788209,0.461,4039.2,4039.1,0.002]
[1761681789388,0.461,4039.2,4039.1,2.47779906]
[1761681789599,0.461,4039.2,4039.1,0.002]
[1761681789921,2.0162,4039.2,4039.1,0.002]
[1761681790087,4.49193776,4039.2,4039.1,0.002]
[1761681796092,2.0162,4039.2,4039.1,0.002]
[1761681796292,0.461,4039.2,4039.1,0.002]
[1761681799642,4.49193776,4039.2,4039.1,0.002]
[1761681799840,5.01118836,4039.2,4039.1,0.002]
[1761681800145,5.01118836,4039.2,4038.7,0.002]
[1761681800146,2.47598296,4038.8,4038.7,0.002]
[1761681800303,5.02263356,4038.8,4038.7,0.002]
[1761681800635,5.02263356,4038.8,4037.5,0.002]
[1761681800636,2.47641217,4038.1,4037.5,0.002]
[1761681801000,6.77971217,4038.1,4037.5,0.002]
[1761681801600,2.0263,4038.1,4037.5,0.002]
[1761681801799,4.3033,4038.1,4037.5,0.002]
[1761681802203,2.0263,4038.1,4037.5,0.002]
[1761681802400,2.0263,4038.1,4037.5,2.47877475]
[1761681802640,2.0263,4038.1,4037.6,2.47670051]
[1761681802935,2.0263,4038.1,4037.5,2.47877034]
[1761681803334,4.95297808,4038.1,4037.5,0.002]
[1761681803532,4.50271217,4038.1,4037.5,0.002]
[1761681803840,2.0263,4038.1,4037.5,0.002]
[1761681804034,2.0263,4038.1,4037.6,2.4766868]
[1761681805202,2.278,4038.4,4037.5,2.47875786]
[1761681805515,0.4711,4038.3,4037.6,2.47671052]
[1761681805705,2.94739002,4038.3,4037.6,2.47671052]
[1761681805907,0.4711,4038.3,4037.5,0.002]
[1761681806110,2.94750305,4038.2,4037.5,0.002]
[1761681806422,0.4711,4038.2,4037.7,2.4766001]
[1761681806608,0.4711,4038.1,4037.7,2.4766001]
[1761681807760,2.47628976,4038.3,4037.5,0.002]
[1761681807761,0.4711,4038.5,4037.5,0.002]
[1761681808057,2.0263,4038.5,4037.9,2.47651374]
[1761681808252,4.50246783,4038.5,4037.6,2.47666475]
[1761681808408,0.4711,4038.5,4037.5,0.407504]
[1761681808617,0.4711,4038.5,4038.0,2.47846729]
[1761681809149,0.4711,4038.5,4038.0,0.002]
[1761681809354,4.50248125,4038.5,4038.0,0.002]
[1761681809648,0.4711,4038.4,4038.0,0.002]
[1761681809829,0.1232,4038.5,4038.0,2.4784661]
[1761681810024,4.15457198,4038.5,4038.0,0.002]
[1761681810224,4.62567198,4038.5,4038.0,0.002]
[1761681810423,1.5552,4038.4,4038.0,2.47844933]
[1761681810846,0.1232,4038.5,4038.0,2.47844933]
[1761681811072,0.1232,4038.5,4038.1,0.02476412]
[1761681811220,1e-08,4039.7,4038.1,0.02476412]
[1761681811221,1.11928604,4039.7,4038.2,0.4302675]
[1761681811416,0.47110001,4039.7,4038.9,2.47588034]
[1761681811632,4.03076152,4039.5,4038.8,2.88147831]
[1761681811815,1.5552,4039.5,4038.8,0.405504]
[1761681812021,1.5552,4039.5,4039.0,2.47581905]
[1761681812224,1.22229147,4039.6,4039.3,2.47567053]
[1761681812421,0.2302,4039.6,4039.3,2.47567053]
[1761681812971,0.2302,4039.6,4038.6,2.277]
[1761681813169,0.7013,4039.6,4038.7,0.679404]
[1761681813461,0.7013,4039.6,4038.9,0.405504]
[1761681813681,0.7013,4039.6,4039.0,2.47586036]
[1761681813815,0.7013,4039.6,4039.3,2.47562423]
[1761681813816,0.2302,4039.6,4039.3,2.47562423]
[1761681814021,0.52099148,4039.7,4038.8,0.405504]
[1761681814022,1e-08,4039.7,4038.8,0.405504]
[1761681814322,1e-08,4039.7,4039.0,0.405504]
[1761681814515,1e-08,4039.7,4039.6,2.47549262]
[1761681818240,1e-08,4039.7,4039.4,4.77518959]
[1761681818241,1e-08,4039.7,4039.4,2.29961931]
[1761681818442,1e-08,4039.7,4039.4,0.02261931]
[1761681818443,2.4755539,4039.5,4039.4,0.02261931]
[1761681818655,7.30022969,4039.5,4039.4,0.02261931]
[1761681818833,7.94841572,4039.5,4039.4,0.02261931]
[1761681821330,7.30022969,4039.5,4039.4,0.02261931]
[1761681833537,7.29922969,4039.5,4039.4,0.02261931]
[1761681833738,12.08140576,4039.5,4039.4,0.02261931]
[1761681834259,12.72959179,4039.5,4039.4,0.02261931]
[1761681834849,12.08140576,4039.5,4039.4,0.02261931]
[1761681836266,12.72959179,4039.5,4039.4,0.02261931]
[1761681837172,12.08140576,4039.5,4039.4,0.02261931]
[1761681837374,12.73465943,4039.5,4039.4,0.02261931]
[1761681837578,12.08240576,4039.5,4039.4,0.02261931]
[1761681838091,12.73092812,4039.5,4039.4,0.02261931]
[1761681838878,12.07840576,4039.5,4039.4,0.02261931]
[1761681839242,16.86058183,4039.5,4039.4,0.02261931]
[1761681839667,2.47604427,4038.7,4038.6,0.002]
[1761681839855,11.08742034,4038.7,4038.6,0.002]
[1761681840065,12.07689613,4038.7,4038.6,0.002]
[1761681840264,12.72951638,4038.7,4038.6,0.002]
[1761681840892,12.94705646,4038.7,4038.6,0.002]
[1761681841179,12.94705646,4038.7,4038.2,0.002]
[1761681841180,13.59584166,4038.3,4038.2,0.002]
[1761681841351,17.69540392,4038.3,4038.2,0.002]
[1761681841551,18.16360392,4038.3,4038.2,0.002]
[1761681841767,21.81620706,4038.3,4038.2,0.002]
[1761681841965,6.82676531,4038.3,4038.2,0.002]
[1761681842950,7.47916008,4038.3,4038.2,0.002]
[1761681843133,7.94700495,4038.3,4038.2,0.002]
[1761681843339,5.67277036,4038.3,4038.2,0.002]
[1761681843540,7.29496531,4038.3,4038.2,0.002]
[1761681844559,8.16470626,4038.3,4038.2,0.002]
[1761681844771,8.16470626,4038.3,4037.1,0.002]
[1761681844772,2.47641217,4038.1,4038.0,1e-08]
[1761681844976,2.47641217,4038.1,4037.1,0.002]
[1761681844977,2.67171884,4037.6,4037.5,1e-08]
[1761681845141,2.47800768,4035.5,4035.4,0.002]
[1761681845346,4.75200768,4035.5,4035.4,0.002]
[1761681845545,3.8292,4035.5,4035.4,0.002]
[1761681845743,0.65172713,4036.2,4035.4,0.002]
[1761681845954,3.8292,4036.3,4035.5,0.4509]
[1761681846169,2.07579206,4036.2,4035.4,0.002]
[1761681846366,2.7397,4036.3,4035.4,0.002]
[1761681846572,2.47765542,4036.1,4035.4,0.002]
[1761681846976,2.47765124,4036.1,4035.4,0.002]
[1761681847176,1.5552,4036.2,4035.4,0.4529]
[1761681847177,2.274,4036.2,4035.4,0.4529]
[1761681847478,2.274,4036.2,4035.7,2.47787862]
[1761681847681,0.4657,4036.8,4035.8,0.405504]
[1761681847891,1.30345426,4037.7,4035.7,0.54087848]
[1761681847892,2.274,4036.7,4035.7,0.4509]
[1761681848181,3.8292,4036.7,4035.4,0.002]
[1761681848356,0.2157,4035.8,4035.4,0.002]
[1761681848682,2.47800768,4035.5,4035.4,0.002]
[1761681848848,4.55274198,4035.5,4035.4,0.002]
[1761681849050,4.98374198,4035.5,4035.4,0.002]
[1761681850382,7.25774198,4035.5,4035.4,0.002]
[1761681851178,4.46420768,4035.5,4035.4,0.002]
[1761681851483,4.46760768,4035.5,4035.4,0.002]
[1761681851662,7.25907842,4035.5,4035.4,0.002]
[1761681852751,4.55067842,4035.5,4035.4,0.002]
[1761681853071,6.30720768,4035.5,4035.4,0.002]
[1761681854379,3.8292,4035.5,4035.4,0.002]
[1761681854605,6.30720768,4035.5,4035.4,0.002]
[1761681855880,4.03320768,4035.5,4035.4,0.002]
[1761681856585,6.30720768,4035.5,4035.4,0.002]
[1761681857486,1.5552,4035.5,4035.4,0.002]
[1761681857672,3.8292,4035.5,4035.4,0.002]
[1761681857873,6.30720768,4035.5,4035.4,0.002]
[1761681858086,3.8292,4035.5,4035.4,0.002]
[1761681861308,0.1232,4035.7,4035.4,0.4399]
[1761681861609,2.274,4036.1,4035.6,2.6011419]
[1761681861907,2.274,4036.1,4035.6,0.42730419]
[1761681862107,2.274,4036.1,4035.7,0.4379]
[1761681862279,2.274,4036.1,4035.6,0.1232]
[1761681862280,2.274,4036.1,4035.6,2.60114415]
[1761681862478,2.274,4036.1,4035.7,2.47788487]
[1761681862680,2.274,4036.1,4035.7,2.91578487]
[1761681862881,2.274,4036.1,4035.8,2.91572112]
[1761681863412,2.274,4036.1,4035.8,0.4379]
[1761681863707,2.274,4036.1,4035.9,0.4379]
[1761681864308,2.274,4036.1,4035.7,2.47787777]
[1761681864685,2.274,4036.1,4035.8,2.91571692]
[1761681865086,2.274,4036.1,4035.8,0.4379]
[1761681865314,2.274,4036.1,4035.6,2.60111897]
[1761681865483,2.274,4036.1,4035.7,2.91577315]
[1761681865678,2.274,4036.1,4035.7,0.4379]
[1761681866012,2.274,4036.1,4035.8,0.4379]
[1761681866311,0.1232,4036.3,4035.8,0.4379]
[1761681866475,0.1232,4036.3,4035.8,2.91570566]
[1761681866476,3.9524,4036.3,4035.8,2.91570566]
[1761681866907,2.3972,4036.3,4035.9,2.91566208]
[1761681867215,0.51898994,4036.4,4036.2,0.1548]
[1761681867517,0.65272713,4037.1,4036.7,2.47727103]
[1761681867674,0.001,4037.1,4036.7,2.47727103]
[1761681867880,0.001,4037.1,4037.0,2.47708694]
[1761681868123,0.001,4037.1,4037.0,3.88447971]
[1761681868278,0.001,4037.1,4037.0,3.85970885]
[1761681869006,0.001,4037.1,4037.0,6.13270885]
[1761681870781,0.001,4037.1,4037.0,3.85970885]
[1761681870990,0.001,4037.1,4037.0,5.15559094]
[1761681872636,0.001,4037.1,4037.0,2.678504]
[1761681872789,0.001,4037.1,4037.0,2.273]
[1761681873521,0.001,4037.1,4037.0,2.7109]